[Event "Titled Tuesday Blitz January 11 2022"]
[White "Yoo, Christopher Woojin"]
[Black "Svane, Rasmus"]
[WhiteFideId "30909694"]
[BlackFideId "4657101"]
[WhiteElo "2105"]
[BlackElo "2645"]
[Result "0-1"]
[Round "08"]
[TimeControl "180+1"]
[Date "2022.01.11"]
[WhiteClock "0:00:11"]
[BlackClock "0:00:47"]

1. e4 {[%clk 0:03:00]}  c6 {[%clk 0:02:53]} 2. Nf3 {[%clk 0:02:58]}  d5 {[%clk 0:02:52]} 3. d3 {[%clk 0:02:59]}  dxe4 {[%clk 0:02:50]} 4. dxe4 {[%clk 0:03:00]}  Qxd1+ {[%clk 0:02:50]} 5. Kxd1 {[%clk 0:03:00]}  Nf6 {[%clk 0:02:51]} 6. Nbd2 {[%clk 0:03:00]}  g6 {[%clk 0:02:49]} 7. Ne1 {[%clk 0:03:01]}  Bh6 {[%clk 0:02:47]} 8. f3 {[%clk 0:03:00]}  Be6 {[%clk 0:02:47]} 9. Nd3 {[%clk 0:03:00]}  Nbd7 {[%clk 0:02:36]} 10. Nb3 {[%clk 0:03:00]}  Bxc1 {[%clk 0:02:35]} 11. Kxc1 {[%clk 0:03:00]}  Bc4 {[%clk 0:02:17]} 12. Ndc5 {[%clk 0:02:50]}  Bxb3 {[%clk 0:02:11]} 13. Nxb3 {[%clk 0:02:48]}  e6 {[%clk 0:02:08]} 14. a4 {[%clk 0:02:47]}  g5 {[%clk 0:02:08]} 15. Nd2 {[%clk 0:02:45]}  Ne5 {[%clk 0:02:07]} 16. Ra3 {[%clk 0:02:40]}  Ke7 {[%clk 0:02:06]} 17. Rb3 {[%clk 0:02:40]}  Rab8 {[%clk 0:02:06]} 18. Be2 {[%clk 0:02:39]}  h5 {[%clk 0:02:04]} 19. Rf1 {[%clk 0:02:30]}  b6 {[%clk 0:01:58]} 20. a5 {[%clk 0:02:15]}  b5 {[%clk 0:01:57]} 21. g3 {[%clk 0:02:10]}  Ned7 {[%clk 0:01:48]} 22. f4 {[%clk 0:02:08]}  gxf4 {[%clk 0:01:47]} 23. gxf4 {[%clk 0:02:07]}  a6 {[%clk 0:01:36]} 24. e5 {[%clk 0:02:02]}  Nd5 {[%clk 0:01:35]} 25. Ne4 {[%clk 0:02:03]}  Rbg8 {[%clk 0:01:27]} 26. c4 {[%clk 0:01:38]}  bxc4 {[%clk 0:01:27]} 27. Bxc4 {[%clk 0:01:37]}  Rb8 {[%clk 0:01:27]} 28. Rg3 {[%clk 0:01:24]}  h4 {[%clk 0:01:24]} 29. Rh3 {[%clk 0:01:21]}  Rhg8 {[%clk 0:01:20]} 30. Rxh4 {[%clk 0:01:16]}  Ne3 {[%clk 0:01:19]} 31. f5 {[%clk 0:00:46]}  Nxf1 {[%clk 0:01:03]} 32. f6+ {[%clk 0:00:40]}  Kd8 {[%clk 0:00:58]} 33. Bxf1 {[%clk 0:00:31]}  Rg1 {[%clk 0:00:58]} 34. Rf4 {[%clk 0:00:23]}  Rb4 {[%clk 0:00:56]} 35. Kd2 {[%clk 0:00:14]}  Rxf1 {[%clk 0:00:56]} 36. Rxf1 {[%clk 0:00:13]}  Rxe4 {[%clk 0:00:56]} 37. Rg1 {[%clk 0:00:13]}  Nxe5 {[%clk 0:00:55]} 38. Rg8+ {[%clk 0:00:13]}  Kc7 {[%clk 0:00:55]} 39. Ra8 {[%clk 0:00:13]}  Rh4 {[%clk 0:00:47]} 40. Rxa6 {[%clk 0:00:12]}  Nc4+ {[%clk 0:00:47]} 41. Kc3 {[%clk 0:00:11]}  Kb7 {[%clk 0:00:47]} 0-1


[Site "https://www.chess.com"]

[Event "Titled Tuesday Blitz January 11 2022"]
[White "Zelbel, Patrick"]
[Black "Dronavalli, Harika"]
[WhiteFideId "24624322"]
[BlackFideId "5015197"]
[WhiteElo "2493"]
[BlackElo "2382"]
[Result "1-0"]
[Round "08"]
[TimeControl "180+1"]
[Date "2022.01.11"]
[WhiteClock "0:00:19"]
[BlackClock "0:00:18"]

1. e4 {[%clk 0:02:54]}  e6 {[%clk 0:02:58]} 2. d4 {[%clk 0:02:53]}  d5 {[%clk 0:02:58]} 3. Nd2 {[%clk 0:02:52]}  c5 {[%clk 0:02:57]} 4. exd5 {[%clk 0:02:49]}  exd5 {[%clk 0:02:57]} 5. Ngf3 {[%clk 0:02:45]}  Nc6 {[%clk 0:02:57]} 6. Bb5 {[%clk 0:02:41]}  cxd4 {[%clk 0:02:42]} 7. O-O {[%clk 0:02:38]}  Bd6 {[%clk 0:02:41]} 8. Nb3 {[%clk 0:02:33]}  Ne7 {[%clk 0:02:41]} 9. Nbxd4 {[%clk 0:02:33]}  h6 {[%clk 0:02:31]} 10. Re1 {[%clk 0:02:31]}  O-O {[%clk 0:02:31]} 11. h3 {[%clk 0:02:30]}  Bd7 {[%clk 0:02:30]} 12. c3 {[%clk 0:02:28]}  Ng6 {[%clk 0:02:24]} 13. Be3 {[%clk 0:02:18]}  Re8 {[%clk 0:02:18]} 14. Bd3 {[%clk 0:02:11]}  Nce5 {[%clk 0:02:16]} 15. Nxe5 {[%clk 0:02:11]}  Nxe5 {[%clk 0:02:15]} 16. Bc2 {[%clk 0:02:10]}  Qf6 {[%clk 0:02:13]} 17. Qh5 {[%clk 0:02:10]}  Rad8 {[%clk 0:02:07]} 18. Rad1 {[%clk 0:02:04]}  Bb8 {[%clk 0:02:06]} 19. a3 {[%clk 0:01:49]}  Nc4 {[%clk 0:01:58]} 20. Bc1 {[%clk 0:01:47]}  Qd6 {[%clk 0:01:50]} 21. g3 {[%clk 0:01:41]}  Rxe1+ {[%clk 0:01:35]} 22. Rxe1 {[%clk 0:01:41]}  Qf6 {[%clk 0:01:34]} 23. Bf5 {[%clk 0:01:33]}  Bc6 {[%clk 0:01:27]} 24. Bd3 {[%clk 0:01:23]}  Ne5 {[%clk 0:01:25]} 25. Bf1 {[%clk 0:01:19]}  Re8 {[%clk 0:01:24]} 26. f4 {[%clk 0:01:17]}  Ng6 {[%clk 0:01:08]} 27. Rxe8+ {[%clk 0:01:14]}  Bxe8 {[%clk 0:01:09]} 28. Qxd5 {[%clk 0:01:14]}  Bc7 {[%clk 0:01:09]} 29. Be3 {[%clk 0:01:07]}  Bb6 {[%clk 0:01:09]} 30. Qxb7 {[%clk 0:01:02]}  Qd8 {[%clk 0:00:47]} 31. Qe4 {[%clk 0:00:58]}  Ne7 {[%clk 0:00:46]} 32. Bd3 {[%clk 0:00:55]}  g6 {[%clk 0:00:36]} 33. Bc4 {[%clk 0:00:50]}  Nc6 {[%clk 0:00:24]} 34. Qxg6+ {[%clk 0:00:47]}  Kf8 {[%clk 0:00:23]} 35. Qxh6+ {[%clk 0:00:45]}  Kg8 {[%clk 0:00:23]} 36. Qg5+ {[%clk 0:00:25]}  Qxg5 {[%clk 0:00:22]} 37. fxg5 {[%clk 0:00:26]}  Ne5 {[%clk 0:00:23]} 38. Be2 {[%clk 0:00:26]}  Bd7 {[%clk 0:00:23]} 39. g4 {[%clk 0:00:25]}  a5 {[%clk 0:00:17]} 40. Kf2 {[%clk 0:00:25]}  a4 {[%clk 0:00:17]} 41. Kg3 {[%clk 0:00:25]}  Be6 {[%clk 0:00:17]} 42. h4 {[%clk 0:00:24]}  Ba2 {[%clk 0:00:16]} 43. h5 {[%clk 0:00:23]}  Bc4 {[%clk 0:00:17]} 44. Kf2 {[%clk 0:00:20]}  Bxe2 {[%clk 0:00:16]} 45. Kxe2 {[%clk 0:00:21]}  Nc4 {[%clk 0:00:17]} 46. Bc1 {[%clk 0:00:21]}  Bxd4 {[%clk 0:00:16]} 47. cxd4 {[%clk 0:00:21]}  Kf8 {[%clk 0:00:17]} 48. Kd3 {[%clk 0:00:21]}  Nd6 {[%clk 0:00:17]} 49. Bf4 {[%clk 0:00:19]}  Nb5 {[%clk 0:00:17]} 50. Kc4 {[%clk 0:00:19]}  Na7 {[%clk 0:00:18]} 51. Kc5 {[%clk 0:00:19]}  Ke7 {[%clk 0:00:18]} 52. h6 {[%clk 0:00:19]} 1-0


[Site "https://www.chess.com"]

[Event "Titled Tuesday Blitz January 11 2022"]
[White "Alavkin, Arseny"]
[Black "Zelbel, Patrick"]
[WhiteFideId "4120612"]
[BlackFideId "24624322"]
[WhiteElo "2391"]
[BlackElo "2493"]
[Result "1-0"]
[Round "09"]
[TimeControl "180+1"]
[Date "2022.01.11"]
[WhiteClock "0:00:29"]
[BlackClock "0:00:32"]

1. c4 {[%clk 0:02:45]}  e5 {[%clk 0:02:49]} 2. Nc3 {[%clk 0:02:44]}  Bb4 {[%clk 0:02:49]} 3. Nf3 {[%clk 0:02:43]}  d6 {[%clk 0:02:45]} 4. a3 {[%clk 0:02:40]}  Bxc3 {[%clk 0:02:45]} 5. bxc3 {[%clk 0:02:39]}  f5 {[%clk 0:02:31]} 6. d3 {[%clk 0:02:37]}  Nf6 {[%clk 0:02:31]} 7. g3 {[%clk 0:02:35]}  O-O {[%clk 0:02:31]} 8. Bg2 {[%clk 0:02:34]}  Qe8 {[%clk 0:02:30]} 9. O-O {[%clk 0:02:34]}  Nc6 {[%clk 0:02:29]} 10. Rb1 {[%clk 0:02:33]}  h6 {[%clk 0:02:26]} 11. Ne1 {[%clk 0:02:30]}  g5 {[%clk 0:02:23]} 12. Nc2 {[%clk 0:02:27]}  f4 {[%clk 0:02:21]} 13. Nb4 {[%clk 0:02:28]}  Ne7 {[%clk 0:02:17]} 14. Nd5 {[%clk 0:02:24]}  Nexd5 {[%clk 0:02:14]} 15. cxd5 {[%clk 0:02:25]}  Qh5 {[%clk 0:02:09]} 16. e4 {[%clk 0:02:05]}  f3 {[%clk 0:01:47]} 17. Bxf3 {[%clk 0:01:37]}  Bg4 {[%clk 0:01:47]} 18. Bxg4 {[%clk 0:01:26]}  Nxg4 {[%clk 0:01:48]} 19. h4 {[%clk 0:01:23]}  gxh4 {[%clk 0:01:49]} 20. Rb2 {[%clk 0:01:08]}  hxg3 {[%clk 0:01:49]} 21. fxg3 {[%clk 0:01:09]}  Rxf1+ {[%clk 0:01:48]} 22. Qxf1 {[%clk 0:01:10]}  Rf8 {[%clk 0:01:47]} 23. Qg2 {[%clk 0:01:09]}  Nh2 {[%clk 0:01:29]} 24. Rf2 {[%clk 0:00:58]}  Nf3+ {[%clk 0:01:29]} 25. Kf1 {[%clk 0:00:58]}  Rf7 {[%clk 0:01:22]} 26. Be3 {[%clk 0:00:57]}  b6 {[%clk 0:01:15]} 27. c4 {[%clk 0:00:50]}  a5 {[%clk 0:01:15]} 28. a4 {[%clk 0:00:49]}  Nh2+ {[%clk 0:01:07]} 29. Kg1 {[%clk 0:00:43]}  Nf3+ {[%clk 0:01:03]} 30. Kf1 {[%clk 0:00:43]}  Kf8 {[%clk 0:01:01]} 31. Bxh6+ {[%clk 0:00:20]}  Ke8 {[%clk 0:00:44]} 32. Be3 {[%clk 0:00:19]}  Nh2+ {[%clk 0:00:38]} 33. Kg1 {[%clk 0:00:19]}  Nf3+ {[%clk 0:00:37]} 34. Kf1 {[%clk 0:00:20]}  Kd7 {[%clk 0:00:32]} 35. g4 {[%clk 0:00:14]}  Qg6 {[%clk 0:00:31]} 36. Rxf3 {[%clk 0:00:14]}  Rg7 {[%clk 0:00:30]} 37. Rf5 {[%clk 0:00:13]}  Rh7 {[%clk 0:00:28]} 38. Rh5 {[%clk 0:00:14]}  Rxh5 {[%clk 0:00:26]} 39. gxh5 {[%clk 0:00:14]}  Qxh5 {[%clk 0:00:27]} 40. Qe2 {[%clk 0:00:14]}  Qh1+ {[%clk 0:00:25]} 41. Kf2 {[%clk 0:00:15]}  Qh2+ {[%clk 0:00:25]} 42. Ke1 {[%clk 0:00:14]}  Qh1+ {[%clk 0:00:25]} 43. Qf1 {[%clk 0:00:15]}  Qh4+ {[%clk 0:00:24]} 44. Kd2 {[%clk 0:00:15]}  Qh2+ {[%clk 0:00:22]} 45. Qf2 {[%clk 0:00:15]}  Qh5 {[%clk 0:00:21]} 46. Qf5+ {[%clk 0:00:15]}  Qxf5 {[%clk 0:00:21]} 47. exf5 {[%clk 0:00:16]}  Ke7 {[%clk 0:00:22]} 48. Bg5+ {[%clk 0:00:17]}  Kf7 {[%clk 0:00:22]} 49. Ke3 {[%clk 0:00:18]}  Kg7 {[%clk 0:00:23]} 50. Ke4 {[%clk 0:00:18]}  Kf7 {[%clk 0:00:23]} 51. Bd8 {[%clk 0:00:18]}  Ke8 {[%clk 0:00:23]} 52. c5 {[%clk 0:00:19]}  Kd7 {[%clk 0:00:24]} 53. Bxc7 {[%clk 0:00:17]}  Kxc7 {[%clk 0:00:25]} 54. cxb6+ {[%clk 0:00:18]}  Kxb6 {[%clk 0:00:25]} 55. f6 {[%clk 0:00:19]}  Kc5 {[%clk 0:00:26]} 56. f7 {[%clk 0:00:20]}  Kb4 {[%clk 0:00:27]} 57. f8=Q {[%clk 0:00:21]}  Kxa4 {[%clk 0:00:27]} 58. Qxd6 {[%clk 0:00:22]}  Kb3 {[%clk 0:00:28]} 59. Qxe5 {[%clk 0:00:22]}  a4 {[%clk 0:00:29]} 60. Qb8+ {[%clk 0:00:23]}  Ka2 {[%clk 0:00:29]} 61. Qa7 {[%clk 0:00:24]}  a3 {[%clk 0:00:30]} 62. d6 {[%clk 0:00:25]}  Kb2 {[%clk 0:00:30]} 63. d7 {[%clk 0:00:25]}  Kb1 {[%clk 0:00:31]} 64. d8=Q {[%clk 0:00:26]}  a2 {[%clk 0:00:32]} 65. Qdb6+ {[%clk 0:00:27]}  Ka1 {[%clk 0:00:32]} 66. Qd4+ {[%clk 0:00:26]}  Kb1 {[%clk 0:00:32]} 67. Qab6+ {[%clk 0:00:27]}  Kc1 {[%clk 0:00:32]} 68. Qbb2+ {[%clk 0:00:28]}  Kd1 {[%clk 0:00:32]} 69. Qg1# {[%clk 0:00:29]} 1-0


[Site "https://www.chess.com"]

[Event "Titled Tuesday Blitz January 11 2022"]
[White "Andreikin, Dmitry"]
[Black "Sarana, Alexey"]
[WhiteFideId "4158814"]
[BlackFideId "24133795"]
[WhiteElo "2736"]
[BlackElo "2665"]
[Result "0-1"]
[Round "09"]
[TimeControl "180+1"]
[Date "2022.01.11"]
[WhiteClock "0:00:03"]
[BlackClock "0:00:57"]

1. e4 {[%clk 0:03:00]}  c5 {[%clk 0:02:59]} 2. Nc3 {[%clk 0:03:01]}  d6 {[%clk 0:03:00]} 3. Nge2 {[%clk 0:03:00]}  Nf6 {[%clk 0:02:59]} 4. g3 {[%clk 0:03:00]}  g6 {[%clk 0:02:59]} 5. Bg2 {[%clk 0:03:00]}  Bg7 {[%clk 0:03:00]} 6. O-O {[%clk 0:03:00]}  O-O {[%clk 0:03:00]} 7. d3 {[%clk 0:03:01]}  Nc6 {[%clk 0:03:00]} 8. h3 {[%clk 0:03:01]}  Rb8 {[%clk 0:02:59]} 9. f4 {[%clk 0:02:58]}  Nd7 {[%clk 0:02:57]} 10. a4 {[%clk 0:02:51]}  Nd4 {[%clk 0:02:57]} 11. g4 {[%clk 0:02:50]}  a6 {[%clk 0:02:54]} 12. Nxd4 {[%clk 0:02:46]}  cxd4 {[%clk 0:02:54]} 13. Ne2 {[%clk 0:02:46]}  b5 {[%clk 0:02:50]} 14. axb5 {[%clk 0:02:45]}  axb5 {[%clk 0:02:51]} 15. Kh1 {[%clk 0:02:39]}  Bb7 {[%clk 0:02:51]} 16. f5 {[%clk 0:02:27]}  Ra8 {[%clk 0:02:47]} 17. Bg5 {[%clk 0:02:25]}  Re8 {[%clk 0:02:44]} 18. Qd2 {[%clk 0:01:58]}  Qc7 {[%clk 0:02:43]} 19. Rxa8 {[%clk 0:01:56]}  Bxa8 {[%clk 0:02:42]} 20. Bh6 {[%clk 0:01:34]}  Be5 {[%clk 0:02:40]} 21. Nf4 {[%clk 0:01:23]}  Nf6 {[%clk 0:02:22]} 22. g5 {[%clk 0:01:14]}  Nd7 {[%clk 0:01:28]} 23. h4 {[%clk 0:01:04]}  Bxf4 {[%clk 0:01:25]} 24. Qxf4 {[%clk 0:01:02]}  Ne5 {[%clk 0:01:26]} 25. fxg6 {[%clk 0:00:54]}  hxg6 {[%clk 0:01:26]} 26. h5 {[%clk 0:00:52]}  Qxc2 {[%clk 0:01:16]} 27. hxg6 {[%clk 0:00:43]}  fxg6 {[%clk 0:01:17]} 28. Bh3 {[%clk 0:00:33]}  Qxd3 {[%clk 0:01:05]} 29. Be6+ {[%clk 0:00:32]}  Kh7 {[%clk 0:00:55]} 30. Qf7+ {[%clk 0:00:25]}  Nxf7 {[%clk 0:00:55]} 31. Rxf7+ {[%clk 0:00:25]}  Kh8 {[%clk 0:00:55]} 32. Bg7+ {[%clk 0:00:23]}  Kg8 {[%clk 0:00:56]} 33. Rxe7+ {[%clk 0:00:10]}  Kh7 {[%clk 0:00:56]} 34. Bg8+ {[%clk 0:00:03]}  Kxg8 {[%clk 0:00:56]} 35. Rxe8+ {[%clk 0:00:03]}  Kxg7 {[%clk 0:00:57]} 0-1


[Site "https://www.chess.com"]

[Event "Titled Tuesday Blitz January 11 2022"]
[White "Boyer, Mahel"]
[Black "Shimanov, Aleksandr"]
[WhiteFideId "45102422"]
[BlackFideId "4198603"]
[WhiteElo "2328"]
[BlackElo "2636"]
[Result "0-1"]
[Round "09"]
[TimeControl "180+1"]
[Date "2022.01.11"]
[WhiteClock "0:00:03"]
[BlackClock "0:00:35"]

1. d4 {[%clk 0:03:00]}  Nf6 {[%clk 0:02:58]} 2. c4 {[%clk 0:03:01]}  g6 {[%clk 0:02:58]} 3. Nc3 {[%clk 0:03:01]}  Bg7 {[%clk 0:02:59]} 4. e4 {[%clk 0:03:00]}  O-O {[%clk 0:03:00]} 5. Be2 {[%clk 0:03:00]}  d6 {[%clk 0:03:00]} 6. h4 {[%clk 0:03:00]}  c5 {[%clk 0:02:58]} 7. d5 {[%clk 0:03:00]}  e6 {[%clk 0:02:58]} 8. h5 {[%clk 0:03:00]}  exd5 {[%clk 0:02:59]} 9. exd5 {[%clk 0:03:01]}  Re8 {[%clk 0:02:59]} 10. h6 {[%clk 0:03:00]}  Bh8 {[%clk 0:02:59]} 11. Bg5 {[%clk 0:03:01]}  Qb6 {[%clk 0:02:58]} 12. b3 {[%clk 0:03:01]}  Bf5 {[%clk 0:02:54]} 13. Kf1 {[%clk 0:02:54]}  Nbd7 {[%clk 0:02:49]} 14. Rc1 {[%clk 0:02:07]}  Ne5 {[%clk 0:02:46]} 15. Rh4 {[%clk 0:02:06]}  Bc8 {[%clk 0:02:04]} 16. g3 {[%clk 0:01:56]}  Nfd7 {[%clk 0:02:00]} 17. Kg2 {[%clk 0:01:33]}  f5 {[%clk 0:01:59]} 18. Nh3 {[%clk 0:01:32]}  Nf7 {[%clk 0:01:59]} 19. Be3 {[%clk 0:00:59]}  Bf6 {[%clk 0:01:57]} 20. Qd2 {[%clk 0:00:40]}  Qd8 {[%clk 0:01:53]} 21. Nf4 {[%clk 0:00:34]}  Nde5 {[%clk 0:01:50]} 22. Rhh1 {[%clk 0:00:28]}  Ng4 {[%clk 0:01:47]} 23. Bxg4 {[%clk 0:00:27]}  fxg4 {[%clk 0:01:48]} 24. Rce1 {[%clk 0:00:18]}  Bf5 {[%clk 0:01:48]} 25. Ne6 {[%clk 0:00:19]}  Qd7 {[%clk 0:01:47]} 26. Bf4 {[%clk 0:00:09]}  Re7 {[%clk 0:01:42]} 27. Re2 {[%clk 0:00:08]}  Rae8 {[%clk 0:01:41]} 28. Rhe1 {[%clk 0:00:08]}  Ne5 {[%clk 0:01:41]} 29. Bxe5 {[%clk 0:00:06]}  Bxe5 {[%clk 0:01:41]} 30. Rxe5 {[%clk 0:00:05]}  dxe5 {[%clk 0:01:41]} 31. Nxc5 {[%clk 0:00:05]}  Qd8 {[%clk 0:01:31]} 32. N5e4 {[%clk 0:00:04]}  Rf7 {[%clk 0:01:31]} 33. Ng5 {[%clk 0:00:03]}  Rd7 {[%clk 0:01:29]} 34. c5 {[%clk 0:00:02]}  Bd3 {[%clk 0:01:13]} 35. Qxd3 {[%clk 0:00:02]}  Qxg5 {[%clk 0:01:12]} 36. Ne4 {[%clk 0:00:02]}  Qf5 {[%clk 0:01:11]} 37. d6 {[%clk 0:00:02]}  Rf7 {[%clk 0:01:10]} 38. Re3 {[%clk 0:00:02]}  Kh8 {[%clk 0:01:07]} 39. b4 {[%clk 0:00:02]}  Ref8 {[%clk 0:01:04]} 40. Qe2 {[%clk 0:00:02]}  Qe6 {[%clk 0:00:59]} 41. Ng5 {[%clk 0:00:02]}  Rxf2+ {[%clk 0:00:58]} 42. Qxf2 {[%clk 0:00:01]}  Rxf2+ {[%clk 0:00:59]} 43. Kxf2 {[%clk 0:00:01]}  Qf5+ {[%clk 0:00:59]} 44. Nf3 {[%clk 0:00:02]}  Kg8 {[%clk 0:00:58]} 45. d7 {[%clk 0:00:01]}  Qxd7 {[%clk 0:00:51]} 46. Nxe5 {[%clk 0:00:01]}  Qd4 {[%clk 0:00:49]} 47. Nd3 {[%clk 0:00:01]}  Qd5 {[%clk 0:00:44]} 48. Ke2 {[%clk 0:00:02]}  Qxa2+ {[%clk 0:00:43]} 49. Kd1 {[%clk 0:00:03]}  Qh2 {[%clk 0:00:39]} 50. Nf4 {[%clk 0:00:02]}  Qxh6 {[%clk 0:00:37]} 51. Nd5 {[%clk 0:00:02]}  Qh1+ {[%clk 0:00:36]} 52. Kc2 {[%clk 0:00:01]}  Qxd5 {[%clk 0:00:37]} 53. Rd3 {[%clk 0:00:02]}  Qc4+ {[%clk 0:00:36]} 54. Rc3 {[%clk 0:00:02]}  Qxb4 {[%clk 0:00:36]} 55. Kd3 {[%clk 0:00:03]}  h5 {[%clk 0:00:36]} 56. Rc4 {[%clk 0:00:02]}  Qxc4+ {[%clk 0:00:35]} 57. Kxc4 {[%clk 0:00:03]}  h4 {[%clk 0:00:35]} 58. gxh4 {[%clk 0:00:03]}  g3 {[%clk 0:00:35]} 59. c6 {[%clk 0:00:03]}  bxc6 {[%clk 0:00:35]} 0-1


[Site "https://www.chess.com"]

[Event "Titled Tuesday Blitz January 11 2022"]
[White "Costachi, Mihnea"]
[Black "Senthil Maran K"]
[WhiteFideId "1217518"]
[BlackFideId "25035681"]
[WhiteElo "2464"]
[BlackElo "2194"]
[Result "0-1"]
[Round "09"]
[TimeControl "180+1"]
[Date "2022.01.11"]
[WhiteClock "0:01:19"]
[BlackClock "0:00:08"]

1. e4 {[%clk 0:03:00]}  c6 {[%clk 0:02:56]} 2. Nf3 {[%clk 0:02:53]}  d5 {[%clk 0:02:45]} 3. exd5 {[%clk 0:02:54]}  cxd5 {[%clk 0:02:45]} 4. b3 {[%clk 0:02:55]}  Nf6 {[%clk 0:02:39]} 5. Bb2 {[%clk 0:02:55]}  Bg4 {[%clk 0:02:40]} 6. Be2 {[%clk 0:02:56]}  e6 {[%clk 0:02:39]} 7. O-O {[%clk 0:02:56]}  Nbd7 {[%clk 0:02:38]} 8. Ne5 {[%clk 0:02:56]}  Nxe5 {[%clk 0:02:22]} 9. Bxe5 {[%clk 0:02:54]}  Bxe2 {[%clk 0:01:55]} 10. Qxe2 {[%clk 0:02:54]}  Bd6 {[%clk 0:01:50]} 11. Nc3 {[%clk 0:02:45]}  O-O {[%clk 0:01:44]} 12. Nb5 {[%clk 0:02:43]}  Bxe5 {[%clk 0:01:41]} 13. Qxe5 {[%clk 0:02:44]}  Qb6 {[%clk 0:01:36]} 14. Nd4 {[%clk 0:02:40]}  Rac8 {[%clk 0:01:34]} 15. c3 {[%clk 0:02:38]}  Ne4 {[%clk 0:01:27]} 16. Rad1 {[%clk 0:02:28]}  Qd6 {[%clk 0:01:25]} 17. Qxd6 {[%clk 0:02:24]}  Nxd6 {[%clk 0:01:25]} 18. Rfe1 {[%clk 0:02:25]}  Rc5 {[%clk 0:01:23]} 19. f3 {[%clk 0:02:24]}  Rfc8 {[%clk 0:01:22]} 20. a4 {[%clk 0:02:24]}  g6 {[%clk 0:01:15]} 21. Rb1 {[%clk 0:02:23]}  h5 {[%clk 0:01:15]} 22. h4 {[%clk 0:02:23]}  Kg7 {[%clk 0:01:15]} 23. g3 {[%clk 0:02:24]}  Kf6 {[%clk 0:01:15]} 24. Kf2 {[%clk 0:02:23]}  Nf5 {[%clk 0:01:11]} 25. Nxf5 {[%clk 0:02:22]}  gxf5 {[%clk 0:01:11]} 26. Rg1 {[%clk 0:02:17]}  d4 {[%clk 0:01:09]} 27. c4 {[%clk 0:02:14]}  e5 {[%clk 0:00:56]} 28. d3 {[%clk 0:02:14]}  a5 {[%clk 0:00:43]} 29. Rbe1 {[%clk 0:02:14]}  R8c6 {[%clk 0:00:39]} 30. g4 {[%clk 0:02:14]}  hxg4 {[%clk 0:00:32]} 31. fxg4 {[%clk 0:02:14]}  fxg4 {[%clk 0:00:30]} 32. Rxg4 {[%clk 0:02:13]}  Rb6 {[%clk 0:00:18]} 33. Rb1 {[%clk 0:02:13]}  Rc8 {[%clk 0:00:15]} 34. Kf3 {[%clk 0:02:09]}  Ke6 {[%clk 0:00:13]} 35. h5 {[%clk 0:02:08]}  Rh8 {[%clk 0:00:13]} 36. Rh4 {[%clk 0:02:05]}  Kf5 {[%clk 0:00:13]} 37. h6 {[%clk 0:02:02]}  Rbxh6 {[%clk 0:00:12]} 38. Rxh6 {[%clk 0:01:53]}  Rxh6 {[%clk 0:00:13]} 39. Kg3 {[%clk 0:01:54]}  Rg6+ {[%clk 0:00:14]} 40. Kf3 {[%clk 0:01:54]}  Rb6 {[%clk 0:00:13]} 41. Rb2 {[%clk 0:01:53]}  Ke6 {[%clk 0:00:13]} 42. Rb1 {[%clk 0:01:50]}  Kd6 {[%clk 0:00:11]} 43. Ke4 {[%clk 0:01:49]}  f6 {[%clk 0:00:11]} 44. Rb2 {[%clk 0:01:44]}  Kc5 {[%clk 0:00:12]} 45. Rb1 {[%clk 0:01:43]}  Kb4 {[%clk 0:00:12]} 46. Kd5 {[%clk 0:01:44]}  Kc3 {[%clk 0:00:10]} 47. Rd1 {[%clk 0:01:39]}  Rxb3 {[%clk 0:00:09]} 48. c5 {[%clk 0:01:36]}  Kc2 {[%clk 0:00:09]} 49. Rf1 {[%clk 0:01:37]}  Rxd3 {[%clk 0:00:08]} 50. Rxf6 {[%clk 0:01:37]}  Rc3 {[%clk 0:00:06]} 51. Rf2+ {[%clk 0:01:30]}  Kb3 {[%clk 0:00:05]} 52. Kxe5 {[%clk 0:01:29]}  Rxc5+ {[%clk 0:00:05]} 53. Kxd4 {[%clk 0:01:29]}  Rc4+ {[%clk 0:00:06]} 54. Kd3 {[%clk 0:01:29]}  Rxa4 {[%clk 0:00:06]} 55. Rf5 {[%clk 0:01:26]}  b6 {[%clk 0:00:05]} 56. Rf1 {[%clk 0:01:24]}  Rb4 {[%clk 0:00:05]} 57. Re1 {[%clk 0:01:20]}  a4 {[%clk 0:00:03]} 58. Rb1+ {[%clk 0:01:18]}  Ka3 {[%clk 0:00:03]} 59. Rh1 {[%clk 0:01:19]}  Kb2 {[%clk 0:00:03]} 60. Rh2+ {[%clk 0:01:19]}  Kb3 {[%clk 0:00:03]} 61. Rh1 {[%clk 0:01:19]}  a3 {[%clk 0:00:04]} 62. Rb1+ {[%clk 0:01:17]}  Ka4 {[%clk 0:00:04]} 63. Ra1 {[%clk 0:01:18]}  Rb2 {[%clk 0:00:03]} 64. Kc3 {[%clk 0:01:17]}  b5 {[%clk 0:00:04]} 65. Rh1 {[%clk 0:01:18]}  b4+ {[%clk 0:00:04]} 66. Kd3 {[%clk 0:01:18]}  a2 {[%clk 0:00:05]} 67. Rh8 {[%clk 0:01:17]}  Kb3 {[%clk 0:00:05]} 68. Ra8 {[%clk 0:01:17]}  Rb1 {[%clk 0:00:06]} 69. Rxa2 {[%clk 0:01:15]}  Kxa2 {[%clk 0:00:06]} 70. Kc4 {[%clk 0:01:16]}  b3 {[%clk 0:00:06]} 71. Kb5 {[%clk 0:01:17]}  b2 {[%clk 0:00:06]} 72. Ka4 {[%clk 0:01:18]}  Rc1 {[%clk 0:00:07]} 73. Kb4 {[%clk 0:01:18]}  b1=Q+ {[%clk 0:00:07]} 74. Ka4 {[%clk 0:01:19]}  Qb3+ {[%clk 0:00:07]} 75. Ka5 {[%clk 0:01:20]}  Kb2 {[%clk 0:00:07]} 76. Ka6 {[%clk 0:01:19]}  Ra1# {[%clk 0:00:08]} 0-1


[Site "https://www.chess.com"]

[Event "Titled Tuesday Blitz January 11 2022"]
[White "Deac, Bogdan-Daniel"]
[Black "FGHSMN"]
[WhiteFideId "1226380"]
[WhiteElo "2646"]
[BlackElo "2754"]
[Result "0-1"]
[Round "09"]
[TimeControl "180+1"]
[Date "2022.01.11"]
[WhiteClock "0:00:01"]
[BlackClock "0:00:43"]

1. d4 {[%clk 0:03:00]}  Nf6 {[%clk 0:02:58]} 2. c4 {[%clk 0:03:01]}  e6 {[%clk 0:02:58]} 3. Nf3 {[%clk 0:02:57]}  c5 {[%clk 0:02:58]} 4. g3 {[%clk 0:02:55]}  cxd4 {[%clk 0:02:56]} 5. Nxd4 {[%clk 0:02:56]}  d5 {[%clk 0:02:57]} 6. Bg2 {[%clk 0:02:56]}  e5 {[%clk 0:02:56]} 7. Nf3 {[%clk 0:02:56]}  d4 {[%clk 0:02:56]} 8. O-O {[%clk 0:02:56]}  Nc6 {[%clk 0:02:56]} 9. e3 {[%clk 0:02:57]}  Be7 {[%clk 0:02:55]} 10. exd4 {[%clk 0:02:57]}  exd4 {[%clk 0:02:55]} 11. Bf4 {[%clk 0:02:57]}  O-O {[%clk 0:02:54]} 12. Ne5 {[%clk 0:02:56]}  Qb6 {[%clk 0:02:50]} 13. Qb3 {[%clk 0:02:53]}  Bd7 {[%clk 0:02:27]} 14. Nd2 {[%clk 0:02:37]}  Rad8 {[%clk 0:02:15]} 15. Qxb6 {[%clk 0:02:04]}  axb6 {[%clk 0:02:14]} 16. Nxd7 {[%clk 0:02:05]}  Nxd7 {[%clk 0:02:06]} 17. Rfe1 {[%clk 0:01:52]}  Bb4 {[%clk 0:02:02]} 18. a3 {[%clk 0:01:46]}  Bxd2 {[%clk 0:02:00]} 19. Bxd2 {[%clk 0:01:47]}  Nde5 {[%clk 0:02:00]} 20. b3 {[%clk 0:01:32]}  Nd3 {[%clk 0:01:59]} 21. Red1 {[%clk 0:01:28]}  Nc5 {[%clk 0:01:51]} 22. Rab1 {[%clk 0:01:11]}  Rfe8 {[%clk 0:01:50]} 23. Bf4 {[%clk 0:01:00]}  Rd7 {[%clk 0:01:35]} 24. Kf1 {[%clk 0:00:09]}  Ne4 {[%clk 0:01:22]} 25. Rbc1 {[%clk 0:00:09]}  f5 {[%clk 0:01:16]} 26. b4 {[%clk 0:00:09]}  d3 {[%clk 0:01:09]} 27. Be3 {[%clk 0:00:06]}  Ne5 {[%clk 0:01:00]} 28. Bxb6 {[%clk 0:00:03]}  Ra8 {[%clk 0:00:57]} 29. f3 {[%clk 0:00:02]}  Nd6 {[%clk 0:00:48]} 30. c5 {[%clk 0:00:02]}  Ndc4 {[%clk 0:00:47]} 31. Kg1 {[%clk 0:00:02]}  Ne3 {[%clk 0:00:43]} 32. Rd2 {[%clk 0:00:01]}  N5c4 {[%clk 0:00:43]} 0-1


[Site "https://www.chess.com"]